[Event "*** Titled Tuesday Blitz"]
[Site "Chess.com"]
[Date "2019.02.05"]
[Round "2"]
[White "GadimbayliA"]
[Black "Didici"]
[Result "1-0"]
[WhiteElo "2795"]
[BlackElo "2557"]
[TimeControl "180+2"]
[EndTime "13:23:56 PST"]
[Termination "GadimbayliA won by checkmate"]

1. e4 {[%clk 0:03:01.9]} 1... e5 {[%clk 0:03:00.6]} 2. Nf3 {[%clk 0:03:02.6]}
2... Nc6 {[%clk 0:03:02.1]} 3. Bb5 {[%clk 0:03:03.7]} 3... a6 {[%clk 0:03:03.1]}
4. Ba4 {[%clk 0:03:05]} 4... Nf6 {[%clk 0:03:04.7]} 5. O-O {[%clk 0:03:06.4]}
5... b5 {[%clk 0:03:06.2]} 6. Bb3 {[%clk 0:03:06.5]} 6... Bb7 {[%clk 0:03:07.7]}
7. Re1 {[%clk 0:03:07.4]} 7... Bc5 {[%clk 0:03:08.2]} 8. c3 {[%clk 0:03:07.6]}
8... O-O {[%clk 0:03:09.2]} 9. d4 {[%clk 0:03:08.8]} 9... Bb6 {[%clk 0:03:10]}
10. h3 {[%clk 0:02:55.1]} 10... Re8 {[%clk 0:02:53.7]} 11. Bg5 {[%clk
0:02:51.5]} 11... h6 {[%clk 0:02:34.8]} 12. Bh4 {[%clk 0:02:52]} 12... exd4
{[%clk 0:02:13.1]} 13. e5 {[%clk 0:02:45.4]} 13... g5 {[%clk 0:01:56.3]} 14.
exf6 {[%clk 0:02:41.9]} 14... gxh4 {[%clk 0:01:48.8]} 15. Rxe8+ {[%clk
0:02:36.4]} 15... Qxe8 {[%clk 0:01:50.7]} 16. Nxd4 {[%clk 0:02:12.1]} 16... Qe4
{[%clk 0:01:50.9]} 17. Nd2 {[%clk 0:01:42.1]} 17... Qg6 {[%clk 0:01:40.8]} 18.
N4f3 {[%clk 0:01:30.4]} 18... Ne5 {[%clk 0:00:59.2]} 19. Bc2 {[%clk 0:01:15.1]}
19... Qg3 {[%clk 0:00:30.6]} 20. Kh1 {[%clk 0:01:01.9]} 20... Bxf2 {[%clk
0:00:27.6]} 21. Qe2 {[%clk 0:01:03]} 21... Re8 {[%clk 0:00:26.6]} 22. Ne4 {[%clk
0:00:51.8]} 22... Nxf3 {[%clk 0:00:17.7]} 23. Nxg3 {[%clk 0:00:50.7]} 23... Rxe2
{[%clk 0:00:18]} 24. Nxe2 {[%clk 0:00:52]} 24... Ne1 {[%clk 0:00:19]} 25. Bf5
{[%clk 0:00:49]} 25... Bxg2+ {[%clk 0:00:19.3]} 26. Kh2 {[%clk 0:00:50.5]} 26...
Bc6 {[%clk 0:00:19.1]} 27. Bg4 {[%clk 0:00:48.3]} 27... Kh7 {[%clk 0:00:19.2]}
28. Rd1 {[%clk 0:00:46.2]} 28... Kg6 {[%clk 0:00:19.7]} 29. Bxd7 {[%clk
0:00:41.7]} 29... Bf3 {[%clk 0:00:20.2]} 30. Bg4 {[%clk 0:00:39.1]} 30... Bc6
{[%clk 0:00:18.3]} 31. Nf4+ {[%clk 0:00:31.5]} 31... Kxf6 {[%clk 0:00:19.1]} 32.
Nd5+ {[%clk 0:00:32.8]} 32... Ke5 {[%clk 0:00:19.9]} 33. Nb4 {[%clk 0:00:33.8]}
33... Bg3+ {[%clk 0:00:19.8]} 34. Kg1 {[%clk 0:00:32.9]} 34... Bb7 {[%clk
0:00:21]} 35. Rxe1+ {[%clk 0:00:32.1]} 35... Bxe1 {[%clk 0:00:21.4]} 36. Nd3+
{[%clk 0:00:34]} 36... Ke4 {[%clk 0:00:22.3]} 37. Nxe1 {[%clk 0:00:34.5]} 37...
Ke3 {[%clk 0:00:22.9]} 38. Kf1 {[%clk 0:00:31]} 38... Kd2 {[%clk 0:00:23.9]} 39.
Bf5 {[%clk 0:00:32.3]} 39... Bd5 {[%clk 0:00:22.6]} 40. a3 {[%clk 0:00:31.5]}
40... Bc4+ {[%clk 0:00:21.5]} 41. Kf2 {[%clk 0:00:32.3]} 41... Kc1 {[%clk
0:00:22.7]} 42. b4 {[%clk 0:00:24.9]} 42... Kb2 {[%clk 0:00:23.6]} 43. Ke3
{[%clk 0:00:25.5]} 43... Kxc3 {[%clk 0:00:24.5]} 44. Nf3 {[%clk 0:00:26]} 44...
Kb3 {[%clk 0:00:25.3]} 45. Kd4 {[%clk 0:00:25.9]} 45... Kxa3 {[%clk 0:00:26.4]}
46. Kc5 {[%clk 0:00:27.1]} 46... Be6 {[%clk 0:00:24]} 47. Nxh4 {[%clk
0:00:25.8]} 47... Bxf5 {[%clk 0:00:24]} 48. Nxf5 {[%clk 0:00:27.7]} 48... h5
{[%clk 0:00:25.5]} 49. h4 {[%clk 0:00:26.6]} 49... Ka4 {[%clk 0:00:24.3]} 50.
Ng7 {[%clk 0:00:25.4]} 50... a5 {[%clk 0:00:25.4]} 51. bxa5 {[%clk 0:00:25.6]}
51... Kxa5 {[%clk 0:00:27.3]} 52. Nxh5 {[%clk 0:00:25.6]} 52... b4 {[%clk
0:00:29.2]} 53. Nf4 {[%clk 0:00:25.3]} 53... b3 {[%clk 0:00:30.5]} 54. Nd3
{[%clk 0:00:26.6]} 54... f5 {[%clk 0:00:29.2]} 55. h5 {[%clk 0:00:27.5]} 55...
f4 {[%clk 0:00:30.6]} 56. h6 {[%clk 0:00:25.2]} 56... f3 {[%clk 0:00:32.5]} 57.
h7 {[%clk 0:00:25.4]} 57... f2 {[%clk 0:00:33.6]} 58. h8=Q {[%clk 0:00:25.5]}
58... f1=Q {[%clk 0:00:33.7]} 59. Qa8# {[%clk 0:00:27.4]} 1-0

[Event "*** Titled Tuesday Blitz"]
[Site "Chess.com"]
[Date "2019.02.05"]
[Round "2"]
[White "Feegus"]
[Black "ajkom197"]
[Result "1-0"]
[WhiteElo "2382"]
[BlackElo "2429"]
[TimeControl "180+2"]
[EndTime "13:24:07 PST"]
[Termination "Feegus won by checkmate"]

1. d4 {[%clk 0:03:01.9]} 1... d5 {[%clk 0:03:00.2]} 2. Bf4 {[%clk 0:03:02.1]}
2... c5 {[%clk 0:03:00.7]} 3. e3 {[%clk 0:03:02.3]} 3... Nc6 {[%clk 0:03:01.7]}
4. c3 {[%clk 0:03:03.3]} 4... Nf6 {[%clk 0:03:02.5]} 5. Nd2 {[%clk 0:03:04]}
5... cxd4 {[%clk 0:03:03.2]} 6. exd4 {[%clk 0:03:04.9]} 6... Bg4 {[%clk
0:03:04.1]} 7. Qb3 {[%clk 0:03:05.1]} 7... Qc8 {[%clk 0:03:02.8]} 8. Bd3 {[%clk
0:03:04.8]} 8... e6 {[%clk 0:03:03.4]} 9. Ngf3 {[%clk 0:03:05.3]} 9... Be7
{[%clk 0:03:04.3]} 10. O-O {[%clk 0:03:06]} 10... O-O {[%clk 0:03:05.3]} 11. Ne5
{[%clk 0:03:04.6]} 11... Nxe5 {[%clk 0:03:05.4]} 12. Bxe5 {[%clk 0:03:00.5]}
12... Bh5 {[%clk 0:03:02.1]} 13. Rfe1 {[%clk 0:02:55.6]} 13... Nd7 {[%clk
0:03:01.1]} 14. Bf4 {[%clk 0:02:52.5]} 14... a6 {[%clk 0:03:01.2]} 15. a4 {[%clk
0:02:51.6]} 15... Qc6 {[%clk 0:02:57.9]} 16. Re3 {[%clk 0:02:45.4]} 16... Bd6
{[%clk 0:02:51.7]} 17. Bg3 {[%clk 0:02:45.9]} 17... Bg6 {[%clk 0:02:47.9]} 18.
Rae1 {[%clk 0:02:40.1]} 18... Bxd3 {[%clk 0:02:46.8]} 19. Rxd3 {[%clk
0:02:40.7]} 19... Bxg3 {[%clk 0:02:46.2]} 20. Rxg3 {[%clk 0:02:40.9]} 20... b5
{[%clk 0:02:45.8]} 21. axb5 {[%clk 0:02:40.8]} 21... axb5 {[%clk 0:02:46.5]} 22.
Qd1 {[%clk 0:02:39.4]} 22... b4 {[%clk 0:02:44.2]} 23. Qg4 {[%clk 0:02:38.9]}
23... g6 {[%clk 0:02:43.7]} 24. Rh3 {[%clk 0:02:38.2]} 24... Rfc8 {[%clk
0:02:40.6]} 25. Qh4 {[%clk 0:02:37.5]} 25... Nf8 {[%clk 0:02:41]} 26. cxb4
{[%clk 0:02:10.3]} 26... Qb6 {[%clk 0:02:34.9]} 27. Nf3 {[%clk 0:02:10.1]} 27...
Qxb4 {[%clk 0:02:32.1]} 28. g4 {[%clk 0:02:07.4]} 28... Qxb2 {[%clk 0:02:08]}
29. Ng5 {[%clk 0:02:06.1]} 29... Ra1 {[%clk 0:01:50.5]} 30. Nxh7 {[%clk
0:01:48.1]} 30... Rxe1+ {[%clk 0:01:40.8]} 31. Kg2 {[%clk 0:01:48.7]} 31... Nxh7
{[%clk 0:00:20]} 32. Qxh7+ {[%clk 0:01:47.2]} 32... Kf8 {[%clk 0:00:21.9]} 33.
Qh8+ {[%clk 0:01:45]} 33... Ke7 {[%clk 0:00:23.4]} 34. Qxc8 {[%clk 0:01:44.5]}
34... Qxd4 {[%clk 0:00:19.4]} 35. Qc7+ {[%clk 0:01:18.1]} 35... Kf6 {[%clk
0:00:17]} 36. Rf3+ {[%clk 0:00:57.8]} 36... Kg5 {[%clk 0:00:12.3]} 37. Qxf7
{[%clk 0:00:27.4]} 37... Qe4 {[%clk 0:00:04.5]} 38. Qf6+ {[%clk 0:00:13.9]}
38... Kh6 {[%clk 0:00:05.5]} 39. g5+ {[%clk 0:00:12.4]} 39... Kh7 {[%clk
0:00:06.7]} 40. Qf7+ {[%clk 0:00:13.1]} 40... Kh8 {[%clk 0:00:07.9]} 41. Qf8+
{[%clk 0:00:12.5]} 41... Kh7 {[%clk 0:00:09.3]} 42. Qh6+ {[%clk 0:00:13.5]}
42... Kg8 {[%clk 0:00:10.2]} 43. Qf8+ {[%clk 0:00:14.2]} 43... Kh7 {[%clk
0:00:11.5]} 44. Kh3 {[%clk 0:00:07.5]} 44... Qxf3+ {[%clk 0:00:03.6]} 45. Qxf3
{[%clk 0:00:07.9]} 45... Rg1 {[%clk 0:00:03]} 46. Qf7+ {[%clk 0:00:08.5]} 46...
Kh8 {[%clk 0:00:04.1]} 47. Qxg6 {[%clk 0:00:09.8]} 47... d4 {[%clk 0:00:05.6]}
48. Qf6+ {[%clk 0:00:10.4]} 48... Kh7 {[%clk 0:00:07.1]} 49. Qh6+ {[%clk
0:00:07.8]} 49... Kg8 {[%clk 0:00:07.8]} 50. Qxe6+ {[%clk 0:00:09.1]} 50... Kg7
{[%clk 0:00:08.5]} 51. Qf6+ {[%clk 0:00:09.8]} 51... Kg8 {[%clk 0:00:09.7]} 52.
Qxd4 {[%clk 0:00:10.4]} 52... Rxg5 {[%clk 0:00:09.1]} 53. Qd8+ {[%clk
0:00:11.2]} 53... Kh7 {[%clk 0:00:10.5]} 54. Qxg5 {[%clk 0:00:12.6]} 54... Kh8
{[%clk 0:00:11.4]} 55. f4 {[%clk 0:00:13.7]} 55... Kh7 {[%clk 0:00:12.9]} 56. f5
{[%clk 0:00:15]} 56... Kh8 {[%clk 0:00:14.4]} 57. f6 {[%clk 0:00:16.3]} 57...
Kh7 {[%clk 0:00:15.4]} 58. Qg7# {[%clk 0:00:17.9]} 1-0

[Event "*** Titled Tuesday Blitz"]
[Site "Chess.com"]
[Date "2019.02.05"]
[Round "2"]
[White "BasilSmash"]
[Black "wenx95"]
[Result "1-0"]
[WhiteElo "2352"]
[BlackElo "2493"]
[TimeControl "180+2"]
[EndTime "13:24:24 PST"]
[Termination "BasilSmash won by resignation"]

1. e4 {[%clk 0:03:01.9]} 1... d5 {[%clk 0:02:59.6]} 2. exd5 {[%clk 0:03:01.6]}
2... Qxd5 {[%clk 0:03:01.5]} 3. Nf3 {[%clk 0:03:00.7]} 3... Bg4 {[%clk
0:03:01.9]} 4. Be2 {[%clk 0:03:00.8]} 4... Nc6 {[%clk 0:03:02]} 5. d4 {[%clk
0:02:59.4]} 5... O-O-O {[%clk 0:02:56.1]} 6. c4 {[%clk 0:02:57.4]} 6... Qf5
{[%clk 0:02:55.7]} 7. Be3 {[%clk 0:02:57.5]} 7... Nf6 {[%clk 0:02:48.7]} 8. Nbd2
{[%clk 0:02:56.7]} 8... e6 {[%clk 0:02:48.8]} 9. O-O {[%clk 0:02:51.6]} 9... Bd6
{[%clk 0:02:32.5]} 10. b4 {[%clk 0:02:37]} 10... Bxf3 {[%clk 0:02:00.8]} 11.
Bxf3 {[%clk 0:02:28.5]} 11... Nxd4 {[%clk 0:01:34.9]} 12. Bxd4 {[%clk
0:02:23.5]} 12... Qf4 {[%clk 0:01:33.7]} 13. Bxb7+ {[%clk 0:02:13.4]} 13... Kxb7
{[%clk 0:01:27.5]} 14. Qf3+ {[%clk 0:02:09.7]} 14... Kb8 {[%clk 0:01:23.5]} 15.
Qxf4 {[%clk 0:02:09]} 15... Bxf4 {[%clk 0:01:23]} 16. Nf3 {[%clk 0:02:10.9]}
16... Rd7 {[%clk 0:01:09.3]} 17. g3 {[%clk 0:01:55.3]} 17... Bh6 {[%clk
0:00:45.4]} 18. Ne5 {[%clk 0:01:48.9]} 18... Rxd4 {[%clk 0:00:28.3]} 19. Nc6+
{[%clk 0:01:47.9]} 19... Kb7 {[%clk 0:00:30.2]} 20. Nxd4 {[%clk 0:01:49.7]}
20... g6 {[%clk 0:00:26.1]} 21. Rfd1 {[%clk 0:01:42.7]} 21... Bg7 {[%clk
0:00:25.7]} 22. f3 {[%clk 0:01:37.5]} 22... h5 {[%clk 0:00:25.1]} 23. Nb3 {[%clk
0:01:33.8]} 23... h4 {[%clk 0:00:24.2]} 24. Rac1 {[%clk 0:01:28.3]} 24... hxg3
{[%clk 0:00:22.2]} 25. hxg3 {[%clk 0:01:30.2]} 25... Nh5 {[%clk 0:00:23.4]} 26.
Kg2 {[%clk 0:01:28.3]} 26... Nf6 {[%clk 0:00:23.4]} 27. b5 {[%clk 0:01:26.4]}
27... g5 {[%clk 0:00:21.6]} 28. Nc5+ {[%clk 0:01:22.4]} 28... Kc8 {[%clk
0:00:22.8]} 29. Rh1 {[%clk 0:01:19.8]} 29... Rd8 {[%clk 0:00:23.5]} 30. Rcd1
{[%clk 0:01:20.4]} 30... Rg8 {[%clk 0:00:24.5]} 31. g4 {[%clk 0:01:19.3]} 31...
Bf8 {[%clk 0:00:22.4]} 32. Ne4 {[%clk 0:01:19.8]} 32... Nd7 {[%clk 0:00:22.1]}
33. Rh7 {[%clk 0:01:18.1]} 33... Ne5 {[%clk 0:00:21.9]} 34. c5 {[%clk
0:01:13.8]} 34... f5 {[%clk 0:00:16.2]} 35. Nf6 {[%clk 0:01:06]} 35... Rg7
{[%clk 0:00:17.1]} 36. Rh8 {[%clk 0:01:01.3]} 36... Rf7 {[%clk 0:00:18.1]} 37.
Nh7 {[%clk 0:00:59.7]} 37... Ng6 {[%clk 0:00:19.3]} 38. Rg8 {[%clk 0:00:53.6]}
38... Rxh7 {[%clk 0:00:20.2]} 39. Rxg6 {[%clk 0:00:53.7]} 39... Bxc5 {[%clk
0:00:18.7]} 40. Rxe6 {[%clk 0:00:54.1]} 40... fxg4 {[%clk 0:00:18.7]} 41. fxg4
{[%clk 0:00:56]} 41... Bd6 {[%clk 0:00:19.4]} 42. Rg6 {[%clk 0:00:53.2]} 42...
Rh2+ {[%clk 0:00:19.5]} 43. Kf3 {[%clk 0:00:53.5]} 43... Bf4 {[%clk 0:00:17.7]}
44. a4 {[%clk 0:00:49.1]} 44... Ra2 {[%clk 0:00:16.2]} 45. Rd4 {[%clk
0:00:49.2]} 45... Ra3+ {[%clk 0:00:15.4]} 46. Ke4 {[%clk 0:00:49.7]} 46... Re3+
{[%clk 0:00:15.9]} 47. Kf5 {[%clk 0:00:50.6]} 47... Re5+ {[%clk 0:00:15.8]} 48.
Kf6 {[%clk 0:00:51.8]} 48... Rc5 {[%clk 0:00:16.2]} 49. Kf7 {[%clk 0:00:49.2]}
49... Kb7 {[%clk 0:00:16.1]} 50. Rd8 {[%clk 0:00:45.8]} 50... Rc4 {[%clk
0:00:14.4]} 51. Rgg8 {[%clk 0:00:43.5]} 51... Kb6 {[%clk 0:00:14.6]} 52. Rb8+
{[%clk 0:00:42.3]} 52... Ka5 {[%clk 0:00:15.2]} 53. Rg6 {[%clk 0:00:39.4]} 53...
Kxa4 {[%clk 0:00:12.1]} 54. Ra6+ {[%clk 0:00:40]} 54... Kb4 {[%clk 0:00:13]} 55.
Rxa7 {[%clk 0:00:41.3]} 55... Bd6 {[%clk 0:00:08.3]} 56. b6 {[%clk 0:00:39.3]}
56... cxb6 {[%clk 0:00:09]} 57. Rxb6+ {[%clk 0:00:41.2]} 57... Kc5 {[%clk
0:00:10.1]} 58. Raa6 {[%clk 0:00:40]} 58... Rf4+ {[%clk 0:00:03.9]} 59. Kg6
{[%clk 0:00:40.8]} 59... Be7 {[%clk 0:00:05.2]} 60. Re6 {[%clk 0:00:39.1]} 60...
Bd8 {[%clk 0:00:05.6]} 61. Rad6 {[%clk 0:00:37.3]} 61... Kb5 {[%clk 0:00:07.2]}
62. Rxd8 {[%clk 0:00:37.9]} 62... Rxg4 {[%clk 0:00:07.7]} 63. Re5+ {[%clk
0:00:38.9]} 63... Kc6 {[%clk 0:00:08.3]} 64. Rxg5 {[%clk 0:00:40.8]} 64... Re4
{[%clk 0:00:09.5]} 65. Rf8 {[%clk 0:00:41]} 65... Re7 {[%clk 0:00:09.7]} 66.
Rf6+ {[%clk 0:00:42.9]} 1-0

[Event "*** Titled Tuesday Blitz"]
[Site "Chess.com"]
[Date "2019.02.05"]
[Round "2"]
[White "Zufi1811"]
[Black "kintoho"]
[Result "1-0"]
[WhiteElo "2357"]
[BlackElo "2485"]
[TimeControl "180+2"]
[EndTime "13:24:28 PST"]
[Termination "Zufi1811 won by resignation"]

1. e4 {[%clk 0:03:01.9]} 1... c5 {[%clk 0:03:00.2]} 2. Nf3 {[%clk 0:03:02.1]}
2... Nf6 {[%clk 0:03:01.4]} 3. e5 {[%clk 0:03:01.4]} 3... Nd5 {[%clk 0:03:02.4]}
4. Nc3 {[%clk 0:03:03]} 4... e6 {[%clk 0:03:03.7]} 5. Nxd5 {[%clk 0:03:01.9]}
5... exd5 {[%clk 0:03:05]} 6. d4 {[%clk 0:03:03.8]} 6... Nc6 {[%clk 0:03:06.3]}
7. c3 {[%clk 0:03:05]} 7... d6 {[%clk 0:03:07.1]} 8. Bb5 {[%clk 0:03:04]} 8...
cxd4 {[%clk 0:03:02.3]} 9. Nxd4 {[%clk 0:03:01.4]} 9... Bd7 {[%clk 0:03:03.1]}
10. exd6 {[%clk 0:02:52.1]} 10... Bxd6 {[%clk 0:03:04.2]} 11. O-O {[%clk
0:02:50.8]} 11... O-O {[%clk 0:03:05]} 12. Be3 {[%clk 0:02:33.8]} 12... Qf6
{[%clk 0:02:54.1]} 13. Bd3 {[%clk 0:02:28.4]} 13... Ne5 {[%clk 0:02:51.2]} 14.
h3 {[%clk 0:02:25.1]} 14... a6 {[%clk 0:02:44.9]} 15. Bc2 {[%clk 0:01:56.2]}
15... Rad8 {[%clk 0:02:39.4]} 16. Qh5 {[%clk 0:01:44.8]} 16... g6 {[%clk
0:02:21.2]} 17. Qh6 {[%clk 0:01:45.3]} 17... Qg7 {[%clk 0:02:15.4]} 18. Rad1
{[%clk 0:01:40.9]} 18... Nc4 {[%clk 0:02:14]} 19. Qxg7+ {[%clk 0:01:38.4]} 19...
Kxg7 {[%clk 0:02:14.9]} 20. Bc1 {[%clk 0:01:39.1]} 20... Nb6 {[%clk 0:02:07.8]}
21. Rfe1 {[%clk 0:01:37.9]} 21... Rfe8 {[%clk 0:02:08.1]} 22. Rxe8 {[%clk
0:01:37.3]} 22... Rxe8 {[%clk 0:02:08.7]} 23. Bb3 {[%clk 0:01:31.9]} 23... Bc5
{[%clk 0:02:00.8]} 24. Be3 {[%clk 0:01:22.1]} 24... Rc8 {[%clk 0:02:01.8]} 25.
Nc2 {[%clk 0:01:19.3]} 25... Be6 {[%clk 0:01:56.5]} 26. Bd4+ {[%clk 0:01:14.5]}
26... Kf8 {[%clk 0:01:50.4]} 27. Ne3 {[%clk 0:01:12.8]} 27... Bxd4 {[%clk
0:01:47]} 28. Rxd4 {[%clk 0:01:12.8]} 28... Rc5 {[%clk 0:01:48.3]} 29. f4 {[%clk
0:01:09.7]} 29... f6 {[%clk 0:01:40.2]} 30. Kf2 {[%clk 0:01:10.4]} 30... Ke7
{[%clk 0:01:39.8]} 31. Rb4 {[%clk 0:00:55.4]} 31... Rc6 {[%clk 0:01:34.7]} 32.
a4 {[%clk 0:00:54]} 32... Kd6 {[%clk 0:01:19.5]} 33. a5 {[%clk 0:00:52.6]} 33...
Nc4 {[%clk 0:01:20.5]} 34. Bxc4 {[%clk 0:00:50.9]} 34... dxc4 {[%clk 0:01:20.8]}
35. Rxb7 {[%clk 0:00:52.4]} 35... Rc5 {[%clk 0:01:20.9]} 36. Rb6+ {[%clk
0:00:49.3]} 36... Rc6 {[%clk 0:01:22.1]} 37. Rb7 {[%clk 0:00:25.1]} 37... Rc5
{[%clk 0:01:23.3]} 38. Rxh7 {[%clk 0:00:25.7]} 38... Rxa5 {[%clk 0:01:24.1]} 39.
Rb7 {[%clk 0:00:25.9]} 39... Ra2 {[%clk 0:01:19.5]} 40. Nc2 {[%clk 0:00:22.3]}
40... Bd5 {[%clk 0:01:10.3]} 41. Rb6+ {[%clk 0:00:21.5]} 41... Kc5 {[%clk
0:01:11]} 42. Rb8 {[%clk 0:00:21.9]} 42... Be4 {[%clk 0:01:07.6]} 43. Nd4 {[%clk
0:00:21.2]} 43... a5 {[%clk 0:01:05]} 44. g4 {[%clk 0:00:22.3]} 44... f5 {[%clk
0:01:06.3]} 45. Kg3 {[%clk 0:00:21.5]} 45... a4 {[%clk 0:01:06.7]} 46. Kh4
{[%clk 0:00:22.3]} 46... a3 {[%clk 0:01:07.9]} 47. bxa3 {[%clk 0:00:22.1]} 47...
Rxa3 {[%clk 0:01:09.2]} 48. Kg5 {[%clk 0:00:17.7]} 48... Rxc3 {[%clk 0:01:08.8]}
49. Ne6+ {[%clk 0:00:19.2]} 49... Kd6 {[%clk 0:01:08.3]} 50. Kf6 {[%clk
0:00:19.6]} 50... Rxh3 {[%clk 0:01:07.5]} 51. Rd8+ {[%clk 0:00:20.1]} 51... Kc6
{[%clk 0:01:08]} 52. Rc8+ {[%clk 0:00:19.6]} 52... Kb5 {[%clk 0:01:08]} 53. Ng5
{[%clk 0:00:15.7]} 53... fxg4 {[%clk 0:01:06.2]} 54. Nxe4 {[%clk 0:00:14.9]}
54... g3 {[%clk 0:01:05]} 55. Nd6+ {[%clk 0:00:13.3]} 55... Kb6 {[%clk
0:00:59.8]} 56. Nxc4+ {[%clk 0:00:12.9]} 56... Kb7 {[%clk 0:01:00.1]} 57. Nd6+
{[%clk 0:00:13.3]} 57... Kb6 {[%clk 0:01:01.3]} 58. Rc1 {[%clk 0:00:13.3]} 58...
Rh4 {[%clk 0:01:02.6]} 59. Kg5 {[%clk 0:00:12.8]} 59... Rh2 {[%clk 0:01:03.1]}
60. Rg1 {[%clk 0:00:12]} 60... Kc6 {[%clk 0:01:03.5]} 61. Ne4 {[%clk 0:00:12.6]}
61... g2 {[%clk 0:01:04.1]} 62. Nf2 {[%clk 0:00:12.7]} 62... Kd5 {[%clk
0:01:01.6]} 63. Ng4 {[%clk 0:00:13.5]} 63... Rh8 {[%clk 0:01:01.4]} 64. Rxg2
{[%clk 0:00:12.5]} 64... Ke4 {[%clk 0:01:01.5]} 65. Re2+ {[%clk 0:00:13]} 65...
Kd3 {[%clk 0:01:01.2]} 66. Re6 {[%clk 0:00:13]} 66... Kd4 {[%clk 0:01:00]} 67.
Rxg6 {[%clk 0:00:13.5]} 67... Kd5 {[%clk 0:01:01]} 68. f5 {[%clk 0:00:13.7]}
68... Ke4 {[%clk 0:01:01.4]} 69. Re6+ {[%clk 0:00:14.1]} 69... Kf3 {[%clk
0:01:02.7]} 70. Ne5+ {[%clk 0:00:11.7]} 70... Ke4 {[%clk 0:01:03.1]} 71. Ng6+
{[%clk 0:00:13.4]} 71... Kd5 {[%clk 0:01:03.6]} 1-0

[Event "*** Titled Tuesday Blitz"]
[Site "Chess.com"]
[Date "2019.02.05"]
[Round "2"]
[White "DrMelekess"]
[Black "OparinGrigoriy"]
[Result "1-0"]
[WhiteElo "2616"]
[BlackElo "2914"]
[TimeControl "180+2"]
[EndTime "13:24:29 PST"]
[Termination "DrMelekess won by resignation"]

1. d4 {[%clk 0:03:00.4]} 1... Nf6 {[%clk 0:02:58.6]} 2. Nf3 {[%clk 0:03:00.6]}
2... e6 {[%clk 0:03:00.5]} 3. c4 {[%clk 0:03:00.9]} 3... b6 {[%clk 0:03:02.4]}
4. g3 {[%clk 0:03:01.5]} 4... Bb7 {[%clk 0:03:04.3]} 5. Bg2 {[%clk 0:03:02.5]}
5... Be7 {[%clk 0:03:06.2]} 6. O-O {[%clk 0:03:03.8]} 6... O-O {[%clk
0:03:07.8]} 7. Re1 {[%clk 0:03:05.1]} 7... Na6 {[%clk 0:03:08.5]} 8. Ne5 {[%clk
0:03:05.7]} 8... Bxg2 {[%clk 0:03:06]} 9. Kxg2 {[%clk 0:03:07.2]} 9... d6 {[%clk
0:03:06.9]} 10. Nc6 {[%clk 0:03:02.9]} 10... Qe8 {[%clk 0:03:07.8]} 11. Nxe7+
{[%clk 0:03:03.6]} 11... Qxe7 {[%clk 0:03:09.7]} 12. Nc3 {[%clk 0:03:04.3]}
12... c5 {[%clk 0:03:07.8]} 13. e4 {[%clk 0:02:33]} 13... cxd4 {[%clk
0:03:05.6]} 14. Qxd4 {[%clk 0:02:33.1]} 14... Rac8 {[%clk 0:03:07.1]} 15. Bg5
{[%clk 0:02:26.3]} 15... Rfd8 {[%clk 0:03:08.6]} 16. Rad1 {[%clk 0:02:22.2]}
16... Nb4 {[%clk 0:02:59.8]} 17. Rd2 {[%clk 0:02:07.9]} 17... Nc6 {[%clk
0:02:47.4]} 18. Bxf6 {[%clk 0:02:08.1]} 18... gxf6 {[%clk 0:02:49.3]} 19. Qe3
{[%clk 0:02:07.7]} 19... Ne5 {[%clk 0:02:50.8]} 20. b3 {[%clk 0:02:07.5]} 20...
Rd7 {[%clk 0:02:44.4]} 21. Ne2 {[%clk 0:02:02]} 21... Rc5 {[%clk 0:02:28.8]} 22.
Nf4 {[%clk 0:02:01.3]} 22... b5 {[%clk 0:02:26.3]} 23. cxb5 {[%clk 0:01:21.4]}
23... Rxb5 {[%clk 0:02:28.2]} 24. h3 {[%clk 0:01:10]} 24... Ng6 {[%clk 0:02:29]}
25. Red1 {[%clk 0:01:02.8]} 25... a5 {[%clk 0:02:25.4]} 26. Ne2 {[%clk
0:00:56.5]} 26... Rg5 {[%clk 0:02:16.8]} 27. Kh2 {[%clk 0:00:51.6]} 27... Kg7
{[%clk 0:01:52.4]} 28. Nd4 {[%clk 0:00:48]} 28... Rc5 {[%clk 0:01:50.1]} 29. Ne2
{[%clk 0:00:26.3]} 29... Re5 {[%clk 0:01:45.4]} 30. Qf3 {[%clk 0:00:17]} 30...
f5 {[%clk 0:01:42.5]} 31. exf5 {[%clk 0:00:16.9]} 31... Rxf5 {[%clk 0:01:43.6]}
32. Qc3+ {[%clk 0:00:18]} 32... Kg8 {[%clk 0:01:40.4]} 33. Nd4 {[%clk
0:00:18.9]} 33... Rc5 {[%clk 0:01:41.1]} 34. Qe3 {[%clk 0:00:19.2]} 34... Qf6
{[%clk 0:01:38.2]} 35. Nf3 {[%clk 0:00:13.7]} 35... Rc3 {[%clk 0:01:37.1]} 36.
Rd3 {[%clk 0:00:12.9]} 36... Rxd3 {[%clk 0:01:38.4]} 37. Qxd3 {[%clk 0:00:12.4]}
37... d5 {[%clk 0:01:39.2]} 38. Kg2 {[%clk 0:00:12.4]} 38... Rc7 {[%clk
0:01:39.9]} 39. Qd4 {[%clk 0:00:12.3]} 39... Kg7 {[%clk 0:01:40.7]} 40. Rd2
{[%clk 0:00:11.4]} 40... h5 {[%clk 0:01:41]} 41. h4 {[%clk 0:00:11.9]} 41...
Qxd4 {[%clk 0:01:41.9]} 42. Rxd4 {[%clk 0:00:12.5]} 42... Rc5 {[%clk 0:01:41]}
43. Kf1 {[%clk 0:00:12.2]} 43... e5 {[%clk 0:01:39.8]} 44. Rd2 {[%clk 0:00:12]}
44... Kf6 {[%clk 0:01:41.2]} 45. Ke2 {[%clk 0:00:12.2]} 45... Ke6 {[%clk
0:01:41.3]} 46. Ne1 {[%clk 0:00:12.6]} 46... f6 {[%clk 0:01:41.7]} 47. Rc2
{[%clk 0:00:10.8]} 47... Rxc2+ {[%clk 0:01:42.3]} 48. Nxc2 {[%clk 0:00:12.1]}
48... d4 {[%clk 0:01:43.8]} 49. Na3 {[%clk 0:00:09.4]} 49... Ne7 {[%clk
0:01:41.7]} 50. Nc4 {[%clk 0:00:09.1]} 50... Nc6 {[%clk 0:01:43.1]} 51. f3
{[%clk 0:00:10.4]} 51... f5 {[%clk 0:01:44.1]} 52. a3 {[%clk 0:00:10]} 52... e4
{[%clk 0:01:43.4]} 53. Kf2 {[%clk 0:00:07.6]} 53... Kd5 {[%clk 0:01:37.1]} 54.
Nb6+ {[%clk 0:00:07.9]} 54... Kc5 {[%clk 0:01:37.9]} 55. Nd7+ {[%clk 0:00:08.7]}
55... Kd6 {[%clk 0:01:39.2]} 56. Nf6 {[%clk 0:00:10.6]} 56... Ke5 {[%clk
0:01:29.7]} 57. Nxh5 {[%clk 0:00:11.6]} 57... a4 {[%clk 0:01:27.8]} 58. bxa4
{[%clk 0:00:11.9]} 58... d3 {[%clk 0:01:28.6]} 59. Nf4 {[%clk 0:00:10.3]} 59...
Kd4 {[%clk 0:01:25]} 60. h5 {[%clk 0:00:11.2]} 60... e3+ {[%clk 0:01:25.7]} 61.
Ke1 {[%clk 0:00:11.6]} 61... Kc3 {[%clk 0:01:23.9]} 62. Kd1 {[%clk 0:00:12.1]}
62... Nd4 {[%clk 0:01:22.7]} 63. Nd5+ {[%clk 0:00:12.2]} 63... Kb3 {[%clk
0:01:18.2]} 64. Nxe3 {[%clk 0:00:13.8]} 64... Nxf3 {[%clk 0:01:19]} 65. h6
{[%clk 0:00:14]} 65... Ng5 {[%clk 0:01:20.2]} 66. a5 {[%clk 0:00:13.7]} 66...
Kc3 {[%clk 0:01:21.4]} 67. a6 {[%clk 0:00:13.7]} 67... Kd4 {[%clk 0:01:23.3]}
68. Nxf5+ {[%clk 0:00:13.4]} 1-0